Cogmind - Beta 15 @@@ ROGUE MODE // 2025.09.18 @ 00:37:31 Player: c4-BRK Result: Destroyed by G-34 Mercenary with Small Laser Performance ------------- Evolutions (1) 500 Regions Visited (4) 800 Robots Destroyed (69) 345 Value Destroyed (1804) 1804 Prototype IDs (6) 120 Alien Tech Used (0) 0 Bonus (67) 67 TOTAL SCORE: 3636 Bonus ------- Follower Combat Kills 67 Cogmind --------- Core Integrity 0/400 Matter 263/300 Energy 76/100 System Corruption 1% Temperature Danger (446) Movement Core (250) Ox4 Location -9/Storage Parts ------- > --- POWER (1) -------- (None) > --- PROPULSION (2) --- (None) > --- UTILITY (4) ------ Medium Storage Unit > --- WEAPON (2) ------- Advanced Beam Cannon > --- INVENTORY (10) --- Heavy Ion Engine Drone Bay (2/2) Improved Medium Laser Advanced Beam Cannon Improved Assault Rifle Improved Assault Rifle Improved Assault Rifle Rocket Launcher Rocket Launcher Mini Grenade Launcher Peak State ------------ > --- POWER ------------ Heavy Ion Engine > --- PROPULSION ------- Aluminum Leg Improved Aluminum Leg > --- UTILITY ---------- Improved Heat Sink Improved Heat Sink Medium Storage Unit Light Armor Plating > --- WEAPON ----------- Improved Medium Laser Advanced Beam Cannon > --- INVENTORY -------- Ion Engine Aluminum Leg Light Armor Plating Improved EM Shotgun Improved EM Shotgun Improved Medium Laser Improved Assault Rifle Improved Assault Rifle Rocket Launcher Rocket Launcher [Rating: 22] Favorites ----------- Power Ion Engine Engine Ion Engine Power Core Light Nuclear Core Propulsion Aluminum Leg Leg Aluminum Leg Wheel Compact Wheel Utility Improved Heat Sink Device Improved Heat Sink Storage Medium Storage Unit Protection Light Armor Plating Weapon Advanced Beam Cannon Energy Gun Improved Medium Laser Energy Cannon Advanced Beam Cannon Ballistic Gun Assault Rifle Launcher Grenade Launcher Build | -11 -10 -10 -9 -9 ------- Run | Yrd Mat Min Mat Sto Slots Evolved 2 | . . . 2 . Power . | . . . . . Propulsion . | . . . . . Utility 2 | . . . 2 . Weapon . | . . . . . Parts Attached 33 | 6 8 2 7 10 Power 5 | 1 1 . 1 2 Engine 4 | 1 . . 1 2 Core 1 | . 1 . . . Reactor . | . . . . . Propulsion 8 | 2 3 1 1 1 Treads . | . . . . . Leg 5 | . 2 1 1 1 Wheel 3 | 2 1 . . . Hover . | . . . . . Flight . | . . . . . Utility 7 | 1 2 . 2 2 Device 2 | . 1 . 1 . Storage 2 | 1 1 . . . Processor . | . . . . . Hackware . | . . . . . Protection 3 | . . . 1 2 Artifact . | . . . . . Weapon 13 | 2 2 1 3 5 Energy Gun 6 | 2 1 . 1 2 Energy Cannon 3 | . . . 2 1 Ballistic Gun 2 | . 1 . . 1 Ballistic Cannon . | . . . . . Launcher 2 | . . 1 . 1 Special Weapon . | . . . . . Impact Weapon . | . . . . . Slashing Weapon . | . . . . . Piercing Weapon . | . . . . . Special Melee Weapon . | . . . . . Unidentified Prototypes 6 | . . . 2 4 Parts Lost 15 | . 1 4 . 10 Power 2 | . . 1 . 1 Propulsion 5 | . 1 1 . 3 Utility 5 | . . . . 5 Weapon 3 | . . 2 . 1 Highest Loss Streak 6 | . 1 4 . 6 To Critical Strikes . | . . . . . Average Backups 7 | 1 4 4 7 9 Power . | . . . . . Propulsion . | . 1 1 1 . Utility . | . . . . . Weapon 5 | . 2 2 5 7 Tool/Special . | . . . . . Unused Backups 8 | . . . . 8 Power 1 | . . . . 1 Propulsion . | . . . . . Utility 1 | . . . . 1 Weapon 6 | . . . . 6 Tool/Special . | . . . . . Average Slot Usage (%) 95 | . 92 97 99 94 Engine 10 | . 5 13 11 10 Core 1 | . 8 . . . Leg 18 | . . 23 22 20 Wheel 3 | . 25 2 . . Device 17 | . 8 14 22 18 Storage 11 | . 14 14 11 11 Protection 7 | . . . 10 10 Energy Gun 11 | . 15 19 6 10 Energy Cannon 8 | . . . 15 10 Ballistic Gun 1 | . 12 . . . Launcher 1 | . . 7 . . Peak Build Rating 22 | 6 12 12 19 22 Average Rating 16 | 3 9 8 17 20 On Entrance 9 | . 6 12 9 19 Naked Turns . | . . . . . Heaviest Build 30 | 13 21 21 26 30 Greatest Support 26 | 26 26 20 23 23 Greatest Overweight (x) 2 | . 1 1 1 2 Average Overweight (x) . | . . . 1 1 Largest Inventory Capacity 10 | 8 10 10 10 10 Average Capacity 9 | 6 8 10 10 10 Most Carried 10 | 4 7 7 10 10 Average Carried 7 | . 4 4 7 9 Final Capacity 10 | 8 10 10 10 10 Final Carried 10 | . 7 4 10 10 Class Distribution -------------------- 61% | Scavenger-Mutant 38% | Mutant Dominant Class ---------------- Scavenger-Mutant | -10/Materials Mutant | -10/Mines Mutant | -9/Materials Scavenger-Mutant | -9/Storage Resources | -11 -10 -10 -9 -9 ----------- Run | Yrd Mat Min Mat Sto Matter Collected 861 | 224 200 84 160 193 Remotely . | . . . . . Salvage Created 2634 | . 350 186 769 1329 Parts 156 | . 26 7 35 88 Haulers Intercepted 7 | . . . 2 5 Recyclers Shooed 2 | . 1 . . 1 Parts Field Recycled . | . . . . . Retrieved Matter . | . . . . . Parts Self-Destructed . | . . . . . Prevented . | . . . . . Kills | -11 -10 -10 -9 -9 ------- Run | Yrd Mat Min Mat Sto Combat Hostiles Destroyed 48 | . 8 7 11 22 Guns 27 | . 8 6 2 11 Cannons 17 | . . . 7 10 AOE 4 | . . 1 2 1 Classes Destroyed 9 | . 4 . 3 2 Hauler 7 | . . . 2 5 Recycler 4 | . 1 . 2 1 Operator 5 | . . . . 5 Watcher 5 | . 2 . 1 2 Swarmer 11 | . 3 3 2 3 Grunt 26 | . 5 4 6 11 Brawler 1 | . . . . 1 Duelist 2 | . . . 1 1 Sentry 8 | . . . 2 6 Best Kill Streak 5 | . 4 5 3 4 Combat Bots Only 5 | . 4 5 3 4 Max Kills in Single Turn 2 | . 1 2 1 2 Gunslinging . | . . . . . Exploded 1 | . . 1 1 1 Melee . | . . . . . Uniques/NPCs Destroyed . | . . . . . Combat | -11 -10 -10 -9 -9 -------- Run | Yrd Mat Min Mat Sto Hostile Shots Fired 292 | . 27 53 41 171 Missed 93 | . 8 11 17 57 Hits 199 | . 19 42 24 114 Melee 1 | . . . . 1 Projectile 198 | . 19 42 24 113 Critical Strikes 1 | . . . . 1 Damage Taken 2449 | . 249 439 398 1363 Core 635 | . 72 152 67 344 Absorbed by Shields . | . . . . . Redirected to Shielding 50 | . . . 47 3 Core Remaining (%) 55 | 100 . 10 . . Volleys Fired 195 | . 23 24 30 118 Largest 2 | . 2 2 2 2 Hottest 124 | . 85 90 124 124 Shots Fired 340 | . 46 37 59 198 Gun 187 | . 46 28 12 101 Cannon 137 | . . . 47 90 Launcher 16 | . . 9 . 7 Special . | . . . . . Kinetic 29 | . 23 6 . . Thermal 264 | . 23 22 30 189 Explosive 16 | . . 9 . 7 Electromagnetic 31 | . . . 29 2 Robot Hit Streak 9 | . 8 8 9 8 Robot Miss Streak 7 | . 5 3 7 4 Penetration Max . | . . . . . Secondary Targets 1 | . 1 . . . Max Gunslinging Chain 1 | . 1 . . . Shots Hit Robots 190 | . 28 20 39 103 Core Hits 91 | . 16 13 20 42 Critical Kills . | . . . . . Critical Parts Destroyed 1 | . . 1 . . Critical Strikes 9 | . 1 3 . 5 Burn 8 | . 1 2 . 5 Destroy 1 | . . 1 . . Melee Attacks . | . . . . . Impact . | . . . . . Slashing . | . . . . . Piercing . | . . . . . Sneak Attacks . | . . . . . Combat Hostiles . | . . . . . Follow-up Attacks . | . . . . . Damage Inflicted 3733 | . 384 296 973 2080 Guns 1791 | . 384 235 171 1001 Cannons 1630 | . . . 589 1041 Explosions 312 | . . 61 213 38 Melee . | . . . . . Ramming . | . . . . . Kinetic 193 | . 139 54 . . Thermal 2863 | . 245 181 419 2018 Explosive 200 | . . 61 101 38 Electromagnetic 477 | . . . 453 24 Impact . | . . . . . Slashing . | . . . . . Piercing . | . . . . . Highest Corruption 1 | . . . . 1 Average Corruption 1 | . . . . 1 Corruption Purged . | . . . . . Corruption Blocked . | . . . . . Effects 2 | . . . . 2 Message Errors 1 | . . . . 1 Matter Fused 1 | . . . . 1 Overload Shots . | . . . . . Overflow Damage 15 | . . . 3 12 Projectiles 12 | . . . . 12 Explosions 3 | . . . 3 . Melee . | . . . . . Knockbacks . | . . . . . Impact . | . . . . . Kinetic . | . . . . . Secondary . | . . . . . Self-Inflicted Damage 156 | . . 17 113 26 Shots 4 | . . 1 2 1 Rammed . | . . . . . Targets Rammed . | . . . . . Kicked . | . . . . . Crushed . | . . . . . Highest Temperature 440 | . 122 29 2 440 Average Temperature 83 | . 60 13 2 106 Received Heat Transfer 882 | . 129 129 111 513 Effects 1 | . . . . 1 Matter Decay 1 | . . . . 1 Siege Activations . | . . . . . Martial Activations . | . . . . . Shielding Activations . | . . . . . Robots Disrupted . | . . . . . Combat Hostiles . | . . . . . Robots Corrupted . | . . . . . Combat Hostiles . | . . . . . Parts Fried 3 | . . . 3 . Impact Corruptions . | . . . . . Robots Melted . | . . . . . Combat Hostiles . | . . . . . Parts Melted 12 | . 1 3 1 7 Heat Transferred 6404 | . 703 643 655 4403 Parts Sabotaged . | . . . . . Parts Stolen . | . . . . . Parts Stripped . | . . . . . Power Chain Reactions 4 | . . . 4 . Alert | -11 -10 -10 -9 -9 ------- Run | Yrd Mat Min Mat Sto Maximum Alert Level 1 | . . . 1 1 Low Security (%) 95 | 100 100 100 99 92 Level 1 4 | . . . . 7 Level 2 . | . . . . . Level 3 . | . . . . . Level 4 . | . . . . . Level 5 . | . . . . . High Security . | . . . . . Max Security . | . . . . . Peak Influence 321 | . 91 140 204 321 Initial 82 | . . 26 . 82 Average 76 | . 47 55 100 82 Influence Increases 1756 | . 225 204 437 890 Destroy 0b10 Robot/C 1020 | . 160 140 220 500 Destroy 0b10 Robot/NC 105 | . 15 . 25 65 Destroy Leader 294 | . 44 30 66 154 Allied During Kill 19 | . . . . 19 Successful Hack 12 | . 5 . . 7 Disable Machine 105 | . . . 30 75 Destroy Structure 96 | . 1 34 36 25 Lose Combat Pursuer 105 | . . . 60 45 Influence Decreases 1471 | . 156 273 241 801 Entered New Map 157 | . . 43 . 114 Time Decay 1128 | . 146 194 241 547 Lost Part 146 | . 10 36 . 100 Lost Ally 40 | . . . . 40 Squads Dispatched 9 | . 2 . 2 5 Investigation 4 | . 1 . 2 1 Extermination . | . . . . . Reinforcement 3 | . 1 . . 2 Assault 2 | . . . . 2 Garrison . | . . . . . Intercept . | . . . . . Searches Triggered . | . . . . . Construction Impeded . | . . . . . Haulers Reinforced . | . . . . . Active Scanning Responses . | . . . . . Cargo Convoy Interrupts . | . . . . . Stealth | -11 -10 -10 -9 -9 --------- Run | Yrd Mat Min Mat Sto Distress Signals 4 | . . . 1 3 Communications Jammed . | . . . . . Distress Signals . | . . . . . Times Spotted 85 | . 11 7 18 49 Peak Tracking Total 7 | . 5 5 4 7 Tactical Retreats 5 | . . . 4 1 Traps | -11 -10 -10 -9 -9 ------- Run | Yrd Mat Min Mat Sto Traps Triggered 2 | . . . 1 1 Indirectly . | . . . . . Trap Hack Attempts . | . . . . . Triggered . | . . . . . Disarmed . | . . . . . Reprogrammed . | . . . . . Reused . | . . . . . Traps Extracted . | . . . . . Installed . | . . . . . Triggered . | . . . . . Machines | -11 -10 -10 -9 -9 ---------- Run | Yrd Mat Min Mat Sto Machines Disabled 7 | . . . 2 5 Max in Single Turn 2 | . . . 2 1 Machines Repaired . | . . . . . Machines Dismantled . | . . . . . Machines Sabotaged . | . . . . . Overloaded Fab Kills . | . . . . . Hacking | -11 -10 -10 -9 -9 --------- Run | Yrd Mat Min Mat Sto Machines Accessed 13 | . 2 . 2 9 Terminals 13 | . 2 . 2 9 Fabricators . | . . . . . Repair Stations . | . . . . . Recycling Units . | . . . . . Scanalyzers . | . . . . . Garrison Access . | . . . . . Total Hacks 29 | . 5 . 7 17 Successful 10 | . 1 . . 9 Failed 19 | . 4 . 7 8 Catastrophic 5 | . 1 . 1 3 Database Lockouts . | . . . . . Manual 17 | . 5 . 3 9 Terminals 29 | . 5 . 7 17 Fabricators . | . . . . . Repair Stations . | . . . . . Recycling Units . | . . . . . Scanalyzers . | . . . . . Garrison Access . | . . . . . Terminal Hacks 7 | . . . . 7 Open Door 4 | . . . . 4 Maintenance Status 1 | . . . . 1 Registered Components 1 | . . . . 1 Zone Layout 1 | . . . . 1 Fabricator Hacks . | . . . . . Repair Station Hacks . | . . . . . Recycling Unit Hacks . | . . . . . Scanalyzer . | . . . . . Garrison Access Hacks . | . . . . . Unauthorized Hacks 3 | . 1 . . 2 Terminals 3 | . 1 . . 2 Botnet 3 | . 1 . . 2 Fabricators . | . . . . . Repair Stations . | . . . . . Recycling Units . | . . . . . Scanalyzers . | . . . . . Garrison Access . | . . . . . Data Cores Recovered 2 | . . . . 2 Used . | . . . . . Hacking Detections 10 | . 2 . 2 6 Full Trace Events 5 | . 1 . 2 2 Feedback Events . | . . . . . Feedback Blocked . | . . . . . Robot Schematics Acquired . | . . . . . Robots Built . | . . . . . Authchips . | . . . . . Time . | . . . . . Total Robot Build Rating . | . . . . . Part Schematics Acquired . | . . . . . Parts Built . | . . . . . Authchips . | . . . . . Time . | . . . . . Total Part Build Rating . | . . . . . Parts Repaired . | . . . . . Time . | . . . . . Parts Recycled . | . . . . . Recycled Matter . | . . . . . Retrieved Matter . | . . . . . Retrieved Components . | . . . . . Parts Scanalyzed . | . . . . . Part Schematics Acquired . | . . . . . Parts Damaged . | . . . . . Bothacking | -11 -10 -10 -9 -9 ------------ Run | Yrd Mat Min Mat Sto Used RIF Installer . | . . . . . Robots Hacked . | . . . . . Non-combat . | . . . . . Combat . | . . . . . Robot Hacks Applied . | . . . . . Relay Couplers Released . | . . . . . Fabnet Peak Effective % . | . . . . . Robots Rewired . | . . . . . Allies Hacked . | . . . . . Hacks Repelled . | . . . . . Allies | -11 -10 -10 -9 -9 -------- Run | Yrd Mat Min Mat Sto Total Allies 2 | . . . . 2 Largest Group 2 | . . . . 2 Highest-Rated Group 62 | . . . . 62 Highest-Rated Ally 31 | . . . . 31 Total Orders . | . . . . . Ally Attacks 22 | . . . . 22 Total Damage 360 | . . . . 360 Kills 3 | . . . . 3 Allies Corrupted . | . . . . . Allies Melted . | . . . . . Intel | -11 -10 -10 -9 -9 ------- Run | Yrd Mat Min Mat Sto Active Infowar (turns) . | . . . . . Robot Analysis Total . | . . . . . Derelict Logs Recovered . | . . . . . Drone Launches . | . . . . . Drone Recoveries . | . . . . . Exploration | -11 -10 -10 -9 -9 ------------- Run | Yrd Mat Min Mat Sto Turns Passed 3366 | 45 423 506 646 1746 Spaces Moved 1607 | 39 336 283 258 691 Core 5 | 5 . . . . Treads . | . . . . . Legs 1221 | . 3 269 258 691 Wheels 381 | 34 333 14 . . Hover . | . . . . . Flight . | . . . . . Fastest Speed 50 | 50 90 100 190 190 Average Speed 162 | 84 90 152 190 196 Slowest Speed 260 | 90 120 190 190 260 Overloaded Moves . | . . . . . Propulsion Burnouts . | . . . . . Robots Hopped . | . . . . . Potential Cave-ins 9 | . . . . 9 Cave-ins Triggered . | . . . . . Exploration Rate (%) 44 | 3 49 55 28 85 Regions Visited 4 Branch Regions 2 Pre-discovered Areas . | . . . . . Known Exits Taken . | . . . . . Unknown Exits Taken 4 | 1 1 1 1 . Scrap Searched . | . . . . . Spaces Dug 71 | . . 5 . 66 Terrain Destroyed 189 | . . 62 52 75 Melee . | . . . . . Projectile . | . . . . . AOE 189 | . . 62 52 75 Terrain Rammed . | . . . . . Walls Destroyed . | . . . . . Machines Disabled . | . . . . . Actions | -11 -10 -10 -9 -9 --------- Run | Yrd Mat Min Mat Sto Total 2015 | 50 404 321 354 886 Wait 114 | . 25 5 48 36 Move 1603 | 38 335 282 257 691 Hop . | . . . . . Pick Up 40 | 6 10 2 9 13 Fast Attach 1 | . . . . 1 Attach 18 | 6 2 4 2 4 Detach 1 | . . . . 1 Swap 24 | . 8 3 6 7 Drop 15 | . 1 1 2 11 Fire 195 | . 23 24 30 118 Melee . | . . . . . Ram . | . . . . . Kick . | . . . . . Crush . | . . . . . Escape Stasis . | . . . . . Rewire 4 | . . . . 4 Trap . | . . . . . Miscellaneous . | . . . . . Route ------- -11/Scrapyard -10/Materials -10/Mines -9/Materials (discovered 2 exits: [*Mat] / *Sto) -9/Storage (discovered 2 exits: [*Mat] / [*Rec]) History --------- Turn | Location | Event 13 | -11/Scrapyard | Discovered new exit (range 15) 46 | -11/Scrapyard | Entered Materials 439 | -10/Materials | Discovered new exit (range 6) 469 | -10/Materials | Entered Mines 482 | -10/Mines | Core integrity fell below 50% 490 | -10/Mines | Core integrity fell below 20% 515 | -10/Mines | Lost 4 parts (1p1n2w) 562 | -10/Mines | Discovered new exit (range 10) 770 | -10/Mines | Build established: Mutant 975 | -10/Mines | Entered Materials 975 | -9/Materials | Evolved 2 slots: Utility x2 1452 | -9/Materials | Discovered new exit (range 12) 1567 | -9/Materials | Discovered new exit (range 11) 1621 | -9/Materials | Entered Storage 1763 | -9/Storage | Build established: Scavenger-Mutant 2452 | -9/Storage | Used back door to open Recycling access 2452 | -9/Storage | Discovered new exit (range 5) 2908 | -9/Storage | Core integrity fell below 50% 2962 | -9/Storage | Discovered new exit (range 5) 3262 | -9/Storage | Met a pair of Derelict thieves 3354 | -9/Storage | Core integrity fell below 20% 3367 | -9/Storage | Destroyed by G-34 Mercenary with Small Laser Last Messages --------------- Aluminum Leg destroyed. G-47 Trooper destroyed. 7Y-44D(g) destroyed. S-10 Pest destroyed. Lgt. Armor Plating destroyed. R-06 Scavenger collects Aluminum Leg. Imp. Heat Sink destroyed. R-06 Scavenger collects Imp. Heat Sink. Cld. Ion Engine destroyed. M-13 Machinist repairs S-10 Pest Flight Unit. M-13 Machinist repairs S-10 Pest Lgt. Ion Engine. Destroyed Lgt. Ion Engine. Imp. Medium Laser destroyed. Flight Unit melted. S-10 Pest destroyed. Overheating: Matter decay (-42). Imp. Aluminum Leg destroyed. M-13 Machinist repairs G-34 Mercenary Aluminum Leg. Map ----- +----------------------------------------------------+ | ??# ##! !#??????## ! ########## # | | ??# ######??????# """##]]] #### # | | ??# ###########?## """##]]] #T## # | | ??# # #??# """## =+ / | | ??# # #??# ! ##] # # | | ??# # #??#########]] # # | | ??# # """" #??????????#]] # # # | | ??# + """" #??????????######### # | | ??# # !!""" #???????????######## # | | ??# # %%""" #?????#####???########## | | ??# # = #???? #???# ## | | ?## #########+#??? #???# ! [## | | ?# ######## ##? ????# / | | ?# # """?????# #[ | | ?# T + """?????# ! #% | | ?# =% %* # """?##########+##[ | | ?# * #######% #?? """?+ | | ####+######??#!% #?????"?????# | | # #??#[*[#???????????# | | # """ #??#g[%#???????????# | | # """"]" #??#=!m#???????????# ######### | | # "=""=" #??#%[%############# # / | | # [ *" #??#m=g + # | | # "]"""" ####g=%#### ########## ![ # | | # """ +=[%%![#?????????????# ! # | | # ####=@%#?????????????# # | | ###########??#!%[#?????????????######### | | ?????#########[*=#?????????????????????# | | ????? #!* #?????????????????????# | | ???? """ """ # #?????????????????????# | | ???# """ """ # #????????????????????## | | ???# """ """ + +???? ??????????????# | | ???# # # """ "??????????????## | | ???# # + """ "???????????????# | | ???# # # """ "???????????????# | | ???# + #? ???????????????# | | ???############+#########??????????????# | | ?????????????## #???????????????????? | | ?????????????#T #???????????????????? | | ????????????###" "##???????????????????? | | ????????????# !#???????????????????? | | ????????????#]] #???????????????????? | | ????????????# ] [#???????????????????? | | ????????????#] [ [#???????????????????? | | ????????????########???????????????????? | | ???????????????????????????????????????? | | ???????????????????????????????????????? | | | | | | | +----------------------------------------------------+ Best States ------------- Heat Dissipation 56 Energy Generation 14 Energy Capacity 280 Matter Stores 300 Matter Capacity 300 Sight Range 16 Terrain Scan Density 10 Armor Coverage 150 Propulsion Shielding 33 Evasion (%) 55 Item Schematics ----------------- None Robot Schematics ------------------ None Fabricated ------------ Nothing Repaired ---------- Nothing Alien Tech Used ----------------- None Achievements -------------- None Challenges ------------ None Game ------ Seed DefenseReflectiveCoupler Manual? 0 Play Time 00:23:15 Cumulative 24.6 hours Start 2025.09.17 @ 23:45:59 End 2025.09.18 @ 00:37:31 Sessions 1 Manual Loads 0 Difficulty Rogue Special Mode None Game No. 37 Rogue 16 Adventurer 21 Explorer 0 Win Type - Total 1 Types 0/0/0/0/0/0/0/1/0/0 Lore% 48 Gallery% 32 Achievement% 37 Wizard Run 0 Options --------- Layout 1 ASCII 0 Keyboard 0 Movement Mouse Keybinds 0 Fullscreen 2 Font 24/Smallcaps Map View 50x35 Zoom Use 0% Tactical HUD 0 Map Filters NONE Filters NONE Steam 1 RUN: e2ef464f-e582-4250-89c9-80cb824c6b52